Cogmind - Beta 9.1 @@@ ROGUE MODE // 2019.11.01 @ 20:36:12 Player: fartblaster Result: Destroyed by G-34 Mercenary with Small Laser Performance ------------- Evolutions (1) 500 Regions Visited (2) 400 Robots Destroyed (22) 110 Value Destroyed (558) 558 Prototype IDs (0) 0 Alien Tech Used (0) 0 Bonus (0) 0 TOTAL SCORE: 1568 Bonus ------- None Cogmind --------- Core Integrity 0/400 Matter 300/300 Energy 250/250 System Corruption 0% Temperature Cool (15) Location -9/Materials Parts ------- Power (1) Ion Engine Propulsion (2) Flight Unit Utility (4) Large Storage Unit Improved Targeting Computer Weapon (2) Inventory (10) Heavy Ion Engine Cooling System Small Storage Unit Propulsion Shielding Weapon Shielding EMP Blaster Hammer Peak State ------------ Power Light Nuclear Core Propulsion Light Treads Light Treads Utility Large Storage Unit Sensor Array Improved Terrain Scanner Improved Targeting Computer Weapon EM Pulse Gun Particle Gun Inventory Heavy Ion Engine Cooling System Small Storage Unit Propulsion Shielding Weapon Shielding EMP Blaster Hammer Mining Claw [Rating: 15] Favorites ----------- Power Light Nuclear Core Engine Ion Engine Power Core Light Nuclear Core Propulsion Light Treads Treads Light Treads Flight Unit Flight Unit Utility Large Storage Unit Device Improved Terrain Scanner Storage Large Storage Unit Processor Improved Targeting Computer Hackware Hacking Suite Weapon EM Pulse Gun Energy Gun EM Pulse Gun Launcher EMP Blaster Impact Weapon Hammer Slashing Weapon Mining Claw Build | -11 -10 -9 ------- Run | Scr Mat Mat Slots Evolved 2 | . . 2 Power . | . . . Propulsion . | . . . Utility 2 | . . 2 Weapon . | . . . Parts Attached 28 | 6 10 12 Power 4 | 1 2 1 Engine 3 | 1 1 1 Core 1 | . 1 . Reactor . | . . . Propulsion 5 | 2 . 3 Treads 2 | 2 . . Leg . | . . . Wheel . | . . . Hover . | . . . Flight 3 | . . 3 Utility 8 | 1 5 2 Device 3 | . 2 1 Storage 2 | 1 1 . Processor 2 | . 1 1 Hackware 1 | . 1 . Protection . | . . . Artifact . | . . . Weapon 11 | 2 3 6 Energy Gun 6 | 2 2 2 Energy Cannon . | . . . Ballistic Gun . | . . . Ballistic Cannon . | . . . Launcher 1 | . 1 . Special Weapon . | . . . Impact Weapon 2 | . . 2 Slashing Weapon 2 | . . 2 Piercing Weapon . | . . . Special Melee Weapon . | . . . Unidentified Prototypes . | . . . Parts Lost 12 | . 2 10 Power 2 | . 1 1 Propulsion 3 | . . 3 Utility 2 | . . 2 Weapon 5 | . 1 4 Highest Loss Streak 5 | . 2 5 Average Slot Usage (%) 92 | . 98 86 Engine 6 | . 8 5 Core 5 | . 5 5 Treads 18 | . 28 10 Flight 4 | . . 8 Device 15 | . 9 20 Storage 12 | . 14 11 Processor 6 | . 3 9 Energy Gun 17 | . 26 9 Slashing Weapon 3 | . . 5 Naked Turns . | . . . Heaviest Build 30 | 11 30 28 Greatest Support 40 | 40 40 40 Greatest Overweight (x) 7 | . . 7 Average Overweight (x) . | . . 1 Largest Inventory Capacity 10 | 6 10 10 Average Capacity 8 | 5 8 10 Most Carried 10 | . 10 10 Average Carried 6 | . 6 7 Final Capacity 10 | 6 10 10 Final Carried 10 | . 10 7 Class Distribution -------------------- 85% | Mutant 14% | Scavenger-Mutant Dominant Class ---------------- Mutant | -10/Materials Mutant | -9/Materials Resources | -11 -10 -9 ----------- Run | Scr Mat Mat Matter Collected 453 | 228 125 100 Remotely . | . . . Salvage Created 736 | . 526 210 Parts 53 | . 39 14 Haulers Intercepted . | . . . Recyclers Shooed . | . . . Parts Field Recycled . | . . . Retrieved Matter . | . . . Parts Self-Destructed . | . . . Prevented . | . . . Kills | -11 -10 -9 ------- Run | Scr Mat Mat Combat Hostiles Destroyed 18 | . 12 6 Melee 3 | . . 3 Guns 13 | . 10 3 AOE 2 | . 2 . Classes Destroyed 4 | . 4 . Operator 1 | . 1 . Watcher 3 | . 3 . Swarmer 6 | . 3 3 Grunt 12 | . 9 3 Best Kill Streak 6 | . 4 6 Combat Bots Only 6 | . 3 6 Max Kills in Single Turn 2 | . 2 1 Gunslinging 1 | . 1 . Exploded 2 | . 2 . Melee 1 | . . 1 Uniques/NPCs Destroyed . | . . . Combat | -11 -10 -9 -------- Run | Scr Mat Mat Damage Taken 1461 | . 548 913 Core 497 | . 94 403 Absorbed by Shields . | . . . Core Remaining (%) 81 | 100 62 . Volleys Fired 57 | . 46 11 Largest 2 | . 2 2 Hottest 115 | . 115 105 Shots Fired 92 | . 78 14 Gun 90 | . 76 14 Cannon . | . . . Launcher 2 | . 2 . Special . | . . . Kinetic . | . . . Thermal 56 | . 53 3 Explosive . | . . . Electromagnetic 36 | . 25 11 Robot Hit Streak 7 | . 7 3 Robot Miss Streak 8 | . 8 1 Penetration Max . | . . . Secondary Targets 1 | . 1 . Max Gunslinging Chain 1 | . 1 . Shots Hit Robots 61 | . 47 14 Core Hits 34 | . 25 9 Critical Hits . | . . . Critical Kills . | . . . Critical Parts Destroyed . | . . . Melee Attacks 8 | . . 8 Impact . | . . . Slashing 8 | . . 8 Piercing . | . . . Sneak Attacks . | . . . Combat Hostiles . | . . . Follow-up Attacks . | . . . Damage Inflicted 1091 | . 803 288 Guns 825 | . 678 147 Cannons . | . . . Explosions 170 | . 125 45 Melee 96 | . . 96 Ramming . | . . . Kinetic . | . . . Thermal 611 | . 538 73 Explosive . | . . . Electromagnetic 384 | . 265 119 Impact . | . . . Slashing 96 | . . 96 Piercing . | . . . Highest Corruption 3 | . 3 . Average Corruption 2 | . 2 . Corruption Purged . | . . . Effects 2 | . 2 . Message Errors 1 | . 1 . Data Loss (minor) 1 | . 1 . Overload Shots . | . . . Overflow Damage 23 | . 8 15 Projectiles . | . . . Explosions 23 | . 8 15 Melee . | . . . Knockbacks . | . . . Impact . | . . . Kinetic . | . . . Secondary . | . . . Self-Inflicted Damage 18 | . 18 . Shots 1 | . 1 . Rammed . | . . . Targets Rammed . | . . . Kicked . | . . . Crushed . | . . . Highest Temperature 264 | . 264 108 Average Temperature 88 | . 100 36 Received Heat Transfer 627 | . 285 342 Effects 1 | . 1 . Interference 1 | . 1 . Siege Activations . | . . . Robots Corrupted . | . . . Combat Hostiles . | . . . Parts Fried . | . . . Impact Corruptions . | . . . Robots Melted . | . . . Combat Hostiles . | . . . Parts Melted 3 | . 3 . Heat Transferred 1506 | . 1382 124 Parts Sabotaged . | . . . Parts Stolen . | . . . Parts Stripped . | . . . Power Chain Reactions 2 | . 1 1 Missiles Intercepted . | . . . Alert | -11 -10 -9 ------- Run | Scr Mat Mat Peak Influence 234 | . 234 105 Average Influence 71 | . 98 56 Maximum Alert Level 1 | . 1 . Low Security (%) 93 | . . . Level 1 6 | . . . Level 2 . | . . . Level 3 . | . . . Level 4 . | . . . Level 5 . | . . . High Security . | . . . Max Security . | . . . Squads Dispatched 3 | . 3 . Investigation 1 | . 1 . Extermination . | . . . Reinforcement 2 | . 2 . Assault . | . . . Garrison . | . . . Intercept . | . . . Construction Impeded . | . . . Haulers Reinforced . | . . . Stealth | -11 -10 -9 --------- Run | Scr Mat Mat Distress Signals 1 | . . 1 Communications Jammed . | . . . Distress Signals . | . . . Times Spotted 31 | . 18 13 Peak Tracking Total 5 | . 4 5 Tactical Retreats . | . . . Traps | -11 -10 -9 ------- Run | Scr Mat Mat Traps Triggered 3 | . 3 . Indirectly . | . . . Trap Hack Attempts . | . . . Triggered . | . . . Disarmed . | . . . Reprogrammed . | . . . Reused . | . . . Traps Extracted . | . . . Installed . | . . . Triggered . | . . . Machines | -11 -10 -9 ---------- Run | Scr Mat Mat Machines Disabled . | . . . Max in Single Turn . | . . . Machines Sabotaged . | . . . Garrisons Compromised . | . . . Overloaded Fab Kills . | . . . Fab Network Shutdowns . | . . . Hacking | -11 -10 -9 --------- Run | Scr Mat Mat Machines Accessed 1 | . . 1 Terminals 1 | . . 1 Fabricators . | . . . Repair Stations . | . . . Recycling Units . | . . . Scanalyzers . | . . . Garrison Access . | . . . Total Hacks 2 | . . 2 Successful 1 | . . 1 Failed 1 | . . 1 Catastrophic . | . . . Database Lockouts . | . . . Manual . | . . . Terminals 2 | . . 2 Fabricators . | . . . Repair Stations . | . . . Recycling Units . | . . . Scanalyzers . | . . . Garrison Access . | . . . Terminal Hacks 1 | . . 1 Maintenance Status 1 | . . 1 Fabricator Hacks . | . . . Repair Station Hacks . | . . . Recycling Unit Hacks . | . . . Scanalyzer . | . . . Garrison Access Hacks . | . . . Unauthorized Hacks . | . . . Terminals . | . . . Fabricators . | . . . Repair Stations . | . . . Recycling Units . | . . . Scanalyzers . | . . . Garrison Access . | . . . Data Cores Recovered . | . . . Used . | . . . Hacking Detections . | . . . Full Trace Events . | . . . Feedback Events . | . . . Feedback Blocked . | . . . Robot Schematics Acquired . | . . . Robots Built . | . . . Matter . | . . . Time . | . . . Total Robot Build Rating . | . . . Part Schematics Acquired . | . . . Parts Built . | . . . Matter . | . . . Time . | . . . Total Part Build Rating . | . . . Parts Repaired . | . . . Time . | . . . Parts Recycled . | . . . Recycled Matter . | . . . Retrieved Matter . | . . . Retrieved Components . | . . . Parts Scanalyzed . | . . . Part Schematics Acquired . | . . . Parts Damaged . | . . . Bothacking | -11 -10 -9 ------------ Run | Scr Mat Mat Used RIF Installer . | . . . Robots Hacked . | . . . Non-combat . | . . . Combat . | . . . Robot Hacks Applied . | . . . Relay Couplers Released . | . . . Robots Rewired . | . . . Allies Hacked . | . . . Hacks Repelled . | . . . Allies | -11 -10 -9 -------- Run | Scr Mat Mat Total Allies . | . . . Largest Group . | . . . Highest-Rated Group . | . . . Highest-Rated Ally . | . . . Total Orders . | . . . Ally Attacks . | . . . Total Damage . | . . . Kills . | . . . Allies Corrupted . | . . . Allies Melted . | . . . Intel | -11 -10 -9 ------- Run | Scr Mat Mat Robot Analysis Total . | . . . Derelict Logs Recovered . | . . . Drone Launches . | . . . Drone Recoveries . | . . . Exploration | -11 -10 -9 ------------- Run | Scr Mat Mat Turns Passed 1890 | 96 835 959 Spaces Moved 863 | 58 416 389 Core 10 | 4 . 6 Treads 720 | 54 416 250 Legs . | . . . Wheels . | . . . Hover . | . . . Flight 133 | . . 133 Fastest Speed 50 | 50 160 160 Average Speed 187 | 152 160 221 Slowest Speed 520 | 160 160 520 Overloaded Moves . | . . . Propulsion Burnouts . | . . . Robots Hopped . | . . . Cave-ins Triggered . | . . . Exploration Rate (%) 22 | 4 50 13 Regions Visited 2 Branch Regions . Pre-discovered Areas . | . . . Known Exits Taken . | . . . Unknown Exits Taken 2 | 1 1 . Scrap Searched . | . . . Spaces Dug . | . . . Terrain Destroyed 10 | . 5 5 Melee . | . . . Projectile . | . . . AOE 10 | . 5 5 Actions | -11 -10 -9 --------- Run | Scr Mat Mat Total 1025 | 63 506 456 Wait 46 | . 17 29 Move 861 | 57 415 389 Hop . | . . . Pick Up 18 | . 15 3 Fast Attach 10 | 6 1 3 Attach 9 | . 3 6 Detach 3 | . 1 2 Swap 9 | . 6 3 Drop 4 | . 2 2 Fire 57 | . 46 11 Melee 8 | . . 8 Ram . | . . . Kick . | . . . Crush . | . . . Escape Stasis . | . . . Rewire . | . . . Trap . | . . . Miscellaneous . | . . . Route ------- -11/Scrapyard -10/Materials -9/Materials History --------- Turn | Location | Event 48 | -11/Scrapyard | Discovered new exit (range 13) 97 | -11/Scrapyard | Entered Materials 309 | -10/Materials | Build established: Mutant 552 | -10/Materials | Discovered new exit (range 8) 932 | -10/Materials | Entered another Materials area 932 | -9/Materials | Evolved 2 slots: Utility x2 1419 | -9/Materials | Lost 5 parts (1p2n2w) 1864 | -9/Materials | Core integrity fell below 50% 1886 | -9/Materials | Core integrity fell below 20% 1891 | -9/Materials | Destroyed by G-34 Mercenary with Small Laser Last Messages --------------- 01437_ U-05 Engineer repairs door. 01451_ Acquired Ion Engine. 01459_ R-06 Scavenger collects Ion Engine. 01460_ Acquired 17 matter. 01462_ R-06 Scavenger collects Flight Unit. 01465_ R-06 Scavenger collects Lgt. Ion Engine. 01469_ R-06 Scavenger collects Aluminum Leg. 01696_ Acquired 13 matter. 01816_ K-01 Serf collects debris. 01819_ K-01 Serf cleans the Terminal. 01857_ Acquired EM Shotgun. 01863_ C-30 ARC bursts open, deploying its payload. 01863_ G-47 Trooper unfolds itself. 01863_ G-34 Mercenary unfolds itself. 01867_ Sensor Array destroyed. 01869_ Flight Unit destroyed. 01873_ EM Shotgun destroyed. 01873_ Door malfunctions. 01878_ Imp. Terrain Scanner destroyed. 01879_ Mining Claw destroyed. Map ----- +----------------------------------------------------+ | ?????????????????????????????????????????????????? | | ?????????????????????????????????????????????????? | | ?????????????????????????????????????????????????? | | ?????????????????????????????????????????????????? | | ?????????????????????????????????????????????????? | | ?????????????????????????????????????????????????? | | ?????????????????????????????????????????????????? | | ?????????????????????????????????????????????????? | | ?????????????????????????????????????????????????? | | ?????????????????????????????????????????????????? | | ?????????????????????????????????????????????????? | | ?????????????????????????????????????????????????? | | ?????????????????????????????????????????????????? | | ???????????????? ??????????????????????????????? | | ???????????????# ??????????????????????????????? | | ???????????????# ??????????????????????????????? | | ???????????????# #?????????????????????????????? | | ???????????????# #?????????????????????????????? | | ???????????????# #?????????????????????????????? | | ???????????????# #???#?????????????????????????? | | ???????????????# #???# ????????????????????????? | | ???????????????# #???# ????????????????????????? | | ???????????????# #???# ????????????????????????? | | ???????????????# #####/######??????????????????? | | ???????????????#^ ## ggg #??????????????????? | | ??????????????## ## @ #??????????????????? | | ??????????????# ! # ]]#??????????????????? | | ??????????????# # ]]#??????????????????? | | ??????????????# + #??????????????????? | | ??????????????# # #??????????????????? | | ??????????????# # #??????????????????? | | ??????????????### ### #??????????????????? | | ????????????????# #?###########??????????????????? | | ????????????????# #??????????????????????????????? | | ????????????????# ###????????????????????????????? | | ????????????????# ""#????????????????????????????? | | ????????????????# T"#?????????????????????#??????? | | ????????????????# ""#????????????????????????????? | | ????????????????# ###????????????????????????????? | | ????????????????# #????????????????????#?????????? | | ????????????????# ##????#????????????????#???????? | | ?????????????#??# #??????#???????????????????????? | | ????????????#??## #???##?????????????????????????? | | ?????????????##?# #?##???#????????????#??????????? | | ??????????#???### #???#???#?????#????????????????? | | ???????#?#?????## #???#???#?#???????????#????????? | | ???????????#?#??# #??#???????##?#?#??#????????? ?? | | ?????#?#??????#?# ##????##??##??????#????????????? | | ????#?#?????????# ##???#?#??????#???#????????????? | | ????#???? ? ???# #???###?#??#?#?#??###########? | +----------------------------------------------------+ Best States ------------- Heat Dissipation 47 Energy Generation 14 Energy Capacity 250 Matter Stores 300 Matter Capacity 300 Sight Range 16 Robot Scan Range 10 Terrain Scan Range 16 Terrain Scan Density 10 Evasion (%) 40 Targeting Accuracy 6 Armor Integrity Analysis 33 Recoil Reduction 2 Offensive Hacking 10 Item Schematics ----------------- None Robot Schematics ------------------ None Fabricated ------------ Nothing Alien Tech Used ----------------- None Achievements -------------- None Challenges ------------ None Game ------ Seed PropulsionCannonFalx Manual? 0 Play Time 00:24:51 Cumulative 7.0 hours Start 2019.11.01 @ 20:05:07 End 2019.11.01 @ 20:36:12 Sessions 1 Manual Loads 0 Difficulty Rogue Special Mode None Game No. 23 Rogue 23 Adventurer 0 Explorer 0 Win Type - Total 0 Types 0/0/0/0/0/0/0 Lore% 1 Gallery% 12 Achievement% 7 Wizard Run 0 Options --------- ASCII 0 Keyboard 1 Movement Numpad Keybinds 0 Fullscreen 1 Font 18/SmallcapsGlow Map View 76x50 Tactical HUD 1 Map Filters NONE Filters NONE Steam 1 RUN: e28786da-c0ac-429e-9380-79344aad6e2a